fUST/lending_fUST_20250312
["ID","MTS","AMOUNT","RATE_DAILY","PERIOD"]
[356008151,1741793468878,-500.0,0.00023013,2]
[356008152,1741793468887,-5323.54,0.00023013,2]
[356008153,1741793468897,-1802.23,0.00023013,2]
[356008154,1741793468907,-500.0,0.00023013,2]
[356008155,1741793468917,-2894.87,0.00023013,2]
[356008156,1741793468926,-500.0,0.00023013,2]
[356008157,1741793468936,-500.0,0.00023013,2]
[356008158,1741793468945,-1272.02,0.00023013,2]
[356008159,1741793468955,-500.0,0.00023013,2]
[356008160,1741793468966,-536.83,0.00023013,2]
[356008161,1741793468975,-643.6,0.00023013,2]
[356008162,1741793468986,-500.0,0.00023013,2]
[356008163,1741793468996,-500.0,0.00023013,2]
[356008164,1741793469008,-1390.03,0.00023013,2]
[356008165,1741793469018,-1697.13,0.00023013,2]
[356008166,1741793469028,-500.0,0.00023013,2]
[356008167,1741793469038,-500.0,0.00023013,2]
[356008168,1741793469047,-1665.05,0.00023013,2]
[356008169,1741793469057,-500.0,0.00023013,2]
[356008170,1741793469067,-500.0,0.00023013,2]
[356008171,1741793469076,-4035.55,0.00023013,2]
[356008172,1741793469086,-568.32383695,0.00023013,2]
[356008173,1741793469096,-17606.95,0.00023013,2]
[356008174,1741793469105,-3269.46,0.00023013,2]
[356008175,1741793469117,-307.61086561,0.00023013,2]
[356008176,1741793469127,-500.0,0.00023013,2]
[356008177,1741793469136,-1059.74,0.00023013,2]
[356008178,1741793469146,-500.0,0.00023013,2]
[356008179,1741793469155,-1465.71,0.00023013,2]
[356008180,1741793469166,-500.0,0.00023013,2]
[356008181,1741793469176,-552.41,0.00023013,2]
[356008182,1741793469186,-734.16,0.00023013,2]
[356008183,1741793469197,-500.0,0.00023013,2]
[356008184,1741793469207,-859.32,0.00023013,2]
[356008185,1741793469217,-500.0,0.00023013,2]
[356008186,1741793469226,-2406.73,0.00023013,2]
[356008187,1741793469236,-1037.65,0.00023013,2]
[356008188,1741793469245,-553.87,0.00023013,2]
[356008189,1741793469257,-862.64,0.00023013,2]
[356008190,1741793469268,-500.0,0.00023013,2]
[356008191,1741793469277,-500.0,0.00023013,2]
[356008192,1741793469287,-500.0,0.00023013,2]
[356008193,1741793469297,-500.0,0.00023013,2]
[356008194,1741793469307,-1961.85,0.00023013,2]
[356008195,1741793469317,-500.0,0.00023013,2]
[356008196,1741793469327,-581.26053076,0.00023013,2]
[356008197,1741793469336,-3237.69,0.00023013,2]
[356008198,1741793469346,-1082.88,0.00023013,2]
[356008199,1741793469355,-1883.11,0.00023013,2]
[356008200,1741793469364,-500.0,0.00023013,2]
[356008201,1741793469374,-1228.14,0.00023013,2]
[356008202,1741793469384,-924.36,0.00023013,2]
[356008203,1741793469394,-2886.09,0.00023013,2]
[356008204,1741793469403,-500.0,0.00023013,2]
[356008205,1741793469413,-500.0,0.00023013,2]
[356008206,1741793469421,-500.0,0.00023013,2]
[356008207,1741793469430,-500.0,0.00023013,2]
[356008208,1741793469440,-1000.0,0.00023013,7]
[356008209,1741793469450,-500.0,0.00023013,2]
[356008210,1741793469460,-500.0,0.00023013,2]
[356008211,1741793469469,-1251.64,0.00023013,2]
[356008212,1741793469479,-500.0,0.00023013,2]
[356008213,1741793469489,-834.66,0.00023013,2]
[356008214,1741793469499,-1413.63,0.00023013,2]
[356008215,1741793469511,-626.89,0.00023013,2]
[356008216,1741793469520,-1359.76,0.00023013,2]
[356008217,1741793469530,-2270.93,0.00023013,2]
[356008218,1741793469540,-653.3,0.00023013,2]
[356008219,1741793469549,-1246.26,0.00023013,2]
[356008220,1741793469559,-934.29,0.00023013,2]
[356008221,1741793469570,-1713.43,0.00023013,2]
[356008222,1741793469580,-507.49,0.00023013,2]
[356008223,1741793469590,-500.0,0.00023013,2]
[356008224,1741793469600,-500.0,0.00023013,2]
[356008225,1741793469610,-1097.06,0.00023013,2]
[356008226,1741793469620,-562.39,0.00023013,2]
[356008227,1741793469630,-4254.57,0.00023013,2]
[356008228,1741793469639,-1594.09,0.00023013,2]
[356008229,1741793469649,-500.0,0.00023013,2]
[356008230,1741793469659,-500.0,0.00023013,2]
[356008231,1741793469668,-820.67,0.00023013,2]
[356008232,1741793469677,-500.0,0.00023013,2]
[356008233,1741793469686,-500.0,0.00023013,2]
[356008234,1741793469696,-2891.54,0.00023013,2]
[356008235,1741793469706,-1726.92,0.00023013,2]
[356008236,1741793469715,-500.0,0.00023013,2]
[356008237,1741793469725,-500.0,0.00023013,2]
[356008238,1741793469734,-3383.01,0.00023013,2]
[356008239,1741793469744,-694.4,0.00023013,2]
[356008240,1741793469757,-524.59,0.00023013,2]
[356008241,1741793469766,-1946.89,0.00023013,2]
[356008242,1741793469775,-500.0,0.00023013,2]
[356008243,1741793469785,-9999.0,0.00023013,2]
[356008244,1741793469795,-500.0,0.00023013,2]
[356008245,1741793469805,-926.52,0.00023013,2]
[356008246,1741793469815,-500.0,0.00023013,2]
[356008247,1741793469824,-500.0,0.00023013,2]
[356008248,1741793469834,-250.0,0.00023021,2]
[356008249,1741793469845,-2129.02649266,0.00023054,2]
[356008250,1741793469855,-719.17848333,0.00023143,2]
[356008251,1741793469866,-3000.0,0.00023187,2]
[356008252,1741793469875,-1425.59470862,0.0002321,3]
[356008253,1741793469885,-300.0,0.00023287,2]
[356008254,1741793469895,-589.18,0.00023287,2]
[356008255,1741793469904,-770.4,0.00023287,2]
[356008256,1741793469914,-548.9,0.00023287,2]
[356008257,1741793469924,-763.1,0.00023287,2]
[356008258,1741793469933,-891.72,0.00023287,2]
[356008259,1741793469943,-500.0,0.00023287,2]
[356008260,1741793469952,-500.0,0.00023287,2]
[356008261,1741793469961,-567.07,0.00023287,2]
[356008262,1741793469970,-546.65,0.00023287,2]
[356008263,1741793469980,-511.92,0.00023287,2]
[356008264,1741793469989,-562.06,0.00023287,2]
[356008265,1741793469999,-500.0,0.00023287,2]
[356008266,1741793470010,-500.0,0.00023287,2]
[356008267,1741793470019,-500.0,0.00023287,2]
[356008268,1741793470029,-500.0,0.00023287,2]
[356008269,1741793470038,-500.0,0.00023287,2]
[356008270,1741793470048,-500.0,0.00023287,2]
[356008271,1741793470058,-500.0,0.00023287,2]
[356008272,1741793470067,-515.81,0.00023287,2]
[356008273,1741793470076,-500.0,0.00023287,2]
[356008274,1741793470085,-500.0,0.00023287,2]
[356008275,1741793470094,-500.0,0.00023287,2]
[356008276,1741793470104,-500.0,0.00023287,2]
[356008277,1741793470114,-500.0,0.00023287,2]
[356008278,1741793470125,-500.0,0.00023287,2]
[356008279,1741793470134,-500.0,0.00023287,2]
[356008280,1741793470143,-500.0,0.00023287,2]
[356008281,1741793470153,-500.0,0.00023287,2]
[356008282,1741793470162,-500.0,0.00023287,2]
[356008283,1741793470174,-548.6862324,0.00023287,2]
[356008284,1741793470183,-500.0,0.00023287,2]
[356008285,1741793470192,-661.64,0.00023287,2]
[356008286,1741793470203,-500.0,0.00023287,2]
[356008287,1741793470213,-500.0,0.00023287,2]
[356008288,1741793470222,-500.0,0.00023287,2]
[356008289,1741793470231,-500.0,0.00023287,2]
[356008290,1741793470241,-500.0,0.00023287,2]
[356008291,1741793470252,-500.0,0.00023287,2]
[356008292,1741793470261,-386.08055628,0.00023287,2]
[356008293,1741793470271,-500.0,0.00023287,2]
[356008294,1741793470280,-500.0,0.00023287,2]
[356008295,1741793470290,-609.8,0.00023287,2]
[356008296,1741793470299,-1131.2,0.00023287,2]
[356008297,1741793470309,-500.0,0.00023287,2]
[356008298,1741793470318,-500.0,0.00023287,2]
[356008299,1741793470328,-500.0,0.00023287,2]
[356008300,1741793470337,-826.09,0.00023287,2]
[356008301,1741793470347,-500.0,0.00023287,2]
[356008302,1741793470356,-500.0,0.00023287,2]
[356008303,1741793470366,-500.0,0.00023287,2]
[356008304,1741793470375,-500.0,0.00023287,2]
[356008305,1741793470384,-500.0,0.00023287,2]
[356008306,1741793470394,-500.0,0.00023287,2]
[356008307,1741793470403,-500.0,0.00023287,2]
[356008308,1741793470412,-500.0,0.00023287,2]
[356008309,1741793470422,-500.0,0.00023287,2]
[356008310,1741793470432,-1062.19,0.00023287,2]
[356008311,1741793470442,-500.0,0.00023287,2]
[356008312,1741793470452,-500.0,0.00023287,2]
[356008313,1741793470462,-581.1300542,0.00023287,2]
[356008314,1741793470471,-500.0,0.00023287,2]
[356008315,1741793470480,-500.0,0.00023287,2]
[356008316,1741793470490,-597.21,0.00023287,2]
[356008317,1741793470499,-500.0,0.00023287,2]
[356008318,1741793470511,-874.59,0.00023287,2]
[356008319,1741793470520,-639.77,0.00023287,2]
[356008320,1741793470530,-605.08,0.00023287,5]
[356008321,1741793470539,-500.0,0.00023287,2]
[356008322,1741793470548,-500.0,0.00023287,2]
[356008323,1741793470557,-1294.83,0.00023287,2]
[356008324,1741793470567,-1330.17,0.00023287,2]
[356008325,1741793470576,-500.0,0.00023287,2]
[356008326,1741793470585,-500.0,0.00023287,2]
[356008327,1741793470594,-574.87853054,0.00023287,2]
[356008328,1741793470604,-500.0,0.00023287,2]
[356008329,1741793470613,-1279.74,0.00023287,2]
[356008330,1741793470623,-500.0,0.00023287,2]
[356008331,1741793470632,-500.0,0.00023287,2]
[356008332,1741793470642,-257.54963988,0.00023287,2]
[356008333,1741793470652,-500.0,0.00023287,2]
[356008334,1741793470662,-500.0,0.00023287,2]
[356008335,1741793470671,-500.0,0.00023287,2]
[356008336,1741793470681,-1722.61,0.00023287,2]
[356008337,1741793470833,-500.0,0.00023287,2]
[356008338,1741793470844,-500.0,0.00023287,2]
[356008339,1741793470854,-507.63,0.00023287,2]
[356008340,1741793470863,-527.04,0.00023287,2]
[356008341,1741793470873,-500.0,0.00023287,2]
[356008342,1741793470882,-500.0,0.00023287,2]
[356008343,1741793470894,-1063.33,0.00023287,2]
[356008344,1741793470904,-500.0,0.00023287,2]
[356008345,1741793470913,-500.0,0.00023287,2]
[356008346,1741793470923,-500.0,0.00023287,2]
[356008347,1741793470933,-698.39,0.00023287,2]
[356008348,1741793470943,-500.0,0.00023287,2]
[356008349,1741793470953,-387.52956966,0.00023287,2]
[356008350,1741793470962,-500.0,0.00023287,2]
[356008351,1741793470972,-500.0,0.00023287,2]
[356008352,1741793470981,-500.0,0.00023287,2]
[356008353,1741793470991,-1346.12,0.00023287,2]
[356008354,1741793471001,-333.52830837,0.00023287,2]
[356008355,1741793471011,-500.0,0.00023287,2]
[356008356,1741793471020,-514.37449603,0.00023287,2]
[356008357,1741793471029,-500.0,0.00023287,2]
[356008358,1741793471040,-500.0,0.00023287,2]
[356008359,1741793471050,-500.0,0.00023287,2]
[356008360,1741793471059,-500.0,0.00023287,2]
[356008361,1741793471069,-500.0,0.00023287,2]
[356008362,1741793471078,-500.0,0.00023287,2]
[356008363,1741793471088,-500.0,0.00023287,2]
[356008364,1741793471098,-500.0,0.00023287,2]
[356008365,1741793471107,-1073.29,0.00023287,2]
[356008366,1741793471118,-500.0,0.00023287,2]
[356008367,1741793471130,-500.0,0.00023287,2]
[356008368,1741793471140,-500.0,0.00023287,2]
[356008369,1741793471149,-500.0,0.00023287,2]
[356008370,1741793471160,-504.20039364,0.00023287,2]
[356008371,1741793471169,-1976.23,0.00023287,2]
[356008372,1741793471179,-500.0,0.00023287,2]
[356008373,1741793471188,-585.62,0.00023287,2]
[356008374,1741793471198,-683.59,0.00023287,2]
[356008375,1741793471209,-1143.79,0.00023287,2]
[356008376,1741793471219,-550.04,0.00023287,2]
[356008377,1741793471229,-500.0,0.00023287,2]
[356008378,1741793471239,-574.47,0.00023287,2]
[356008379,1741793471248,-500.0,0.00023287,2]
[356008380,1741793471259,-500.0,0.00023287,2]
[356008381,1741793471268,-630.03,0.00023287,2]
[356008382,1741793471278,-500.0,0.00023287,2]
[356008383,1741793471288,-500.0,0.00023287,2]
[356008384,1741793471299,-500.0,0.00023287,2]
[356008385,1741793471308,-500.0,0.00023287,2]
[356008386,1741793471318,-1237.12,0.00023287,2]
[356008387,1741793471328,-500.0,0.00023287,2]
[356008388,1741793471337,-500.0,0.00023287,2]
[356008389,1741793471347,-500.0,0.00023287,2]
[356008390,1741793471356,-506.6291804,0.00023287,2]
[356008391,1741793471366,-500.0,0.00023287,2]
[356008392,1741793471375,-500.0,0.00023287,2]
[356008393,1741793471385,-500.0,0.00023287,2]
[356008394,1741793471395,-500.0,0.00023287,2]
[356008395,1741793471404,-567.64,0.00023287,2]
[356008396,1741793471414,-500.0,0.00023287,2]
[356008397,1741793471424,-500.0,0.00023287,2]
[356008398,1741793471433,-500.0,0.00023287,2]
[356008399,1741793471443,-500.0,0.00023287,2]
[356008400,1741793471453,-2141.55,0.00023287,2]
[356008401,1741793471464,-500.0,0.00023287,2]
[356008402,1741793471474,-1204.72,0.00023287,2]
[356008403,1741793471485,-594.82,0.00023287,2]
[356008404,1741793471495,-283.1831128,0.00023287,2]
[356008405,1741793471506,-1495.98,0.00023287,2]
[356008406,1741793471516,-500.0,0.00023287,2]
[356008407,1741793471526,-500.0,0.00023287,2]
[356008408,1741793471536,-2086.04,0.00023287,2]
[356008409,1741793471546,-500.0,0.00023287,2]
[356008410,1741793471555,-500.0,0.00023287,2]
[356008411,1741793471565,-500.0,0.00023287,2]
[356008412,1741793471575,-500.0,0.00023287,2]
[356008413,1741793471585,-2327.1,0.00023287,2]
[356008414,1741793471595,-500.0,0.00023287,2]
[356008415,1741793471604,-511.8109986,0.00023287,2]
[356008416,1741793471614,-500.0,0.00023287,2]
[356008417,1741793471624,-637.3,0.00023287,2]
[356008418,1741793471634,-500.0,0.00023287,2]
[356008419,1741793471643,-547.46,0.00023287,2]
[356008420,1741793471653,-500.0,0.00023287,2]
[356008421,1741793471663,-500.0,0.00023287,2]
[356008422,1741793471673,-1767.72,0.00023287,2]
[356008423,1741793471682,-9180.3,0.00023287,2]
[356008424,1741793471693,-500.0,0.00023287,2]
[356008425,1741793471703,-500.0,0.00023287,2]
[356008426,1741793471712,-817.19,0.00023287,2]
[356008427,1741793471722,-500.0,0.00023287,2]
[356008428,1741793471732,-1210.4,0.00023287,2]
[356008429,1741793471742,-500.0,0.00023287,2]
[356008430,1741793471753,-729.28,0.00023287,2]
[356008431,1741793471763,-1010.81,0.00023287,2]
[356008432,1741793471773,-500.0,0.00023287,2]
[356008433,1741793471783,-500.0,0.00023287,2]
[356008434,1741793471792,-769.44,0.00023287,2]
[356008435,1741793471802,-500.0,0.00023287,2]
[356008436,1741793471811,-819.43,0.00023287,2]
[356008437,1741793471821,-500.0,0.00023287,2]
[356008438,1741793471830,-563.03549599,0.00023287,2]
[356008439,1741793471840,-500.0,0.00023287,2]
[356008440,1741793471849,-1150.77,0.00023287,2]
[356008441,1741793471859,-1475.87,0.00023287,2]
[356008442,1741793471868,-1317.48,0.00023287,2]
[356008443,1741793471878,-267.73719121,0.00023287,2]
[356008444,1741793471888,-1935.28,0.00023287,2]
[356008445,1741793471898,-500.0,0.00023287,2]
[356008446,1741793471908,-1259.36,0.00023287,2]
[356008447,1741793471918,-500.0,0.00023287,2]
[356008448,1741793471928,-1688.25,0.00023287,2]
[356008449,1741793471937,-2024.05,0.00023287,2]
[356008450,1741793471947,-500.0,0.00023287,2]
[356008451,1741793471957,-1019.14,0.00023287,2]
[356008452,1741793471967,-1435.97,0.00023287,2]
[356008453,1741793471976,-998.45,0.00023287,2]
[356008454,1741793471985,-1379.04,0.00023287,2]
[356008455,1741793471994,-500.0,0.00023287,2]
[356008456,1741793472007,-500.0,0.00023287,2]
[356008457,1741793472017,-1828.2,0.00023287,2]
[356008458,1741793472027,-500.0,0.00023287,2]
[356008459,1741793472036,-500.0,0.00023287,2]
[356008460,1741793472046,-500.0,0.00023287,2]
[356008461,1741793472056,-29117.98,0.00023287,2]
[356008462,1741793472067,-500.0,0.00023287,2]
[356008463,1741793472077,-518.96,0.00023287,2]
[356008464,1741793472088,-732.87,0.00023287,2]
[356008465,1741793472098,-500.0,0.00023287,2]
[356008466,1741793472109,-179.29795111,0.00023287,2]
[356008467,1741793472121,-699.35,0.00023287,2]
[356008468,1741793472132,-500.0,0.00023287,2]
[356008469,1741793472142,-5323.54,0.00023287,2]
[356008470,1741793472152,-1802.23,0.00023287,2]
[356008471,1741793472162,-500.0,0.00023287,2]
[356008472,1741793472172,-2894.87,0.00023287,2]
[356008473,1741793472181,-339.43527604,0.00023287,2]
[356008474,1741793472191,-150.86456892,0.00023287,2]
[356008475,1741793472203,-1272.02,0.00023287,2]
[356008476,1741793472213,-500.0,0.00023287,2]
[356008477,1741793472223,-536.83,0.00023287,2]
[356008478,1741793472233,-643.6,0.00023287,2]
[356008479,1741793472243,-500.0,0.00023287,2]
[356008480,1741793472255,-500.0,0.00023287,2]
[356008481,1741793472265,-1390.03,0.00023287,2]
[356008482,1741793472275,-1697.13,0.00023287,2]
[356008483,1741793472285,-500.0,0.00023287,2]
[356008484,1741793472294,-500.0,0.00023287,2]
[356008485,1741793472304,-1665.05,0.00023287,2]
[356008486,1741793472315,-500.0,0.00023287,2]
[356008487,1741793472325,-4035.55,0.00023287,2]
[356008488,1741793472335,-17606.95,0.00023287,2]
[356008489,1741793472345,-3269.46,0.00023287,2]
[356008490,1741793472355,-218.45361147,0.00023287,2]
[356008491,1741793472365,-1059.74,0.00023287,2]
[356008492,1741793472375,-500.0,0.00023287,2]
[356008493,1741793472385,-1465.71,0.00023287,2]
[356008494,1741793472395,-500.0,0.00023287,2]
[356008495,1741793472405,-552.41,0.00023287,2]
[356008496,1741793472415,-734.16,0.00023287,2]
[356008497,1741793472425,-500.0,0.00023287,2]
[356008498,1741793472435,-859.32,0.00023287,2]
[356008499,1741793472444,-500.0,0.00023287,2]
[356008500,1741793472454,-2406.73,0.00023287,2]
[356008501,1741793472463,-1037.65,0.00023287,2]
[356008502,1741793472472,-553.87,0.00023287,2]
[356008503,1741793472481,-862.64,0.00023287,2]
[356008504,1741793472491,-500.0,0.00023287,2]
[356008505,1741793472503,-500.0,0.00023287,2]
[356008506,1741793472513,-500.0,0.00023287,2]
[356008507,1741793472523,-1961.85,0.00023287,2]
[356008508,1741793472532,-500.0,0.00023287,2]
[356008509,1741793472542,-3237.69,0.00023287,2]
[356008510,1741793472551,-1082.88,0.00023287,2]
[356008511,1741793472561,-1883.11,0.00023287,2]
[356008512,1741793472571,-500.0,0.00023287,2]
[356008513,1741793472580,-1228.14,0.00023287,2]
[356008514,1741793472590,-924.36,0.00023287,2]
[356008515,1741793472600,-2886.09,0.00023287,2]
[356008516,1741793472610,-500.0,0.00023287,2]
[356008517,1741793472621,-500.0,0.00023287,2]
[356008518,1741793472631,-500.0,0.00023287,2]
[356008519,1741793472641,-500.0,0.00023287,2]
[356008520,1741793472651,-1000.0,0.00023287,7]
[356008521,1741793472661,-500.0,0.00023287,2]
[356008522,1741793472671,-500.0,0.00023287,2]
[356008523,1741793472681,-1251.64,0.00023287,2]
[356008524,1741793472690,-500.0,0.00023287,2]
[356008525,1741793472700,-834.66,0.00023287,2]
[356008526,1741793472709,-1413.63,0.00023287,2]
[356008527,1741793472719,-626.89,0.00023287,2]
[356008528,1741793472729,-1359.76,0.00023287,2]
[356008529,1741793472738,-2270.93,0.00023287,2]
[356008530,1741793472749,-653.3,0.00023287,2]
[356008531,1741793472761,-1246.26,0.00023287,2]
[356008532,1741793472771,-1713.43,0.00023287,2]
[356008533,1741793472781,-934.29,0.00023287,2]
[356008534,1741793472791,-560.8,0.00023287,2]
[356008535,1741793472801,-507.49,0.00023287,2]
[356008536,1741793472811,-500.0,0.00023287,2]
[356008537,1741793472820,-500.0,0.00023287,2]
[356008538,1741793472836,-1097.06,0.00023287,2]
[356008539,1741793472845,-562.39,0.00023287,2]
[356008540,1741793472855,-4254.57,0.00023287,2]
[356008541,1741793472864,-1594.09,0.00023287,2]
[356008542,1741793472874,-500.0,0.00023287,2]
[356008543,1741793472884,-500.0,0.00023287,2]
[356008544,1741793472893,-820.67,0.00023287,2]
[356008545,1741793472903,-500.0,0.00023287,2]
[356008546,1741793472913,-500.0,0.00023287,2]
[356008547,1741793472922,-2891.54,0.00023287,2]
[356008548,1741793472932,-1726.92,0.00023287,2]
[356008549,1741793472942,-500.0,0.00023287,2]
[356008550,1741793472952,-500.0,0.00023287,2]
[356008551,1741793472961,-3383.01,0.00023287,2]
[356008552,1741793472971,-694.4,0.00023287,2]
[356008553,1741793472981,-524.59,0.00023287,2]
[356008554,1741793472991,-1946.89,0.00023287,2]
[356008555,1741793473000,-500.0,0.00023287,2]
[356008556,1741793473013,-9999.0,0.00023287,2]
[356008557,1741793473023,-500.0,0.00023287,2]
[356008558,1741793473033,-926.52,0.00023287,2]
[356008559,1741793473044,-500.0,0.00023287,2]
[356008560,1741793473053,-500.0,0.00023287,2]
[356008561,1741793473063,-1152.0,0.00023328,2]
[356008562,1741793473072,-1024.23869445,0.0002348,2]
[356008563,1741793473082,-540.0,0.00023523,2]
[356008564,1741793473091,-1920.0,0.00023523,2]
[356008565,1741793473101,-2272.0,0.00023523,2]
[356008566,1741793473110,-589.18,0.00023561,2]
[356008567,1741793473123,-770.4,0.00023561,2]
[356008568,1741793473132,-548.9,0.00023561,2]
[356008569,1741793473141,-763.1,0.00023561,2]
[356008570,1741793473151,-891.72,0.00023561,2]
[356008571,1741793473161,-500.0,0.00023561,2]
[356008572,1741793473171,-500.0,0.00023561,2]
[356008573,1741793473180,-567.07,0.00023561,2]
[356008574,1741793473191,-546.65,0.00023561,2]
[356008575,1741793473201,-511.92,0.00023561,2]
[356008576,1741793473212,-562.06,0.00023561,2]
[356008577,1741793473221,-500.0,0.00023561,2]
[356008578,1741793473231,-500.0,0.00023561,2]
[356008579,1741793473240,-500.0,0.00023561,2]
[356008580,1741793473249,-500.0,0.00023561,2]
[356008581,1741793473261,-500.0,0.00023561,2]
[356008582,1741793473271,-500.0,0.00023561,2]
[356008583,1741793473281,-500.0,0.00023561,2]
[356008584,1741793473291,-515.81,0.00023561,2]
[356008585,1741793473301,-500.0,0.00023561,2]
[356008586,1741793473311,-500.0,0.00023561,2]
[356008587,1741793473320,-252.62666336,0.00023561,2]
[356008588,1741793473330,-535.6139155,0.00023561,2]
[356008589,1741793473340,-200.8920874,0.00023561,2]
[356008590,1741793473349,-500.0,0.00023561,2]
[356008591,1741793473359,-500.0,0.00023561,2]
[356008592,1741793473368,-500.0,0.00023561,2]
[356008593,1741793473378,-500.0,0.00023561,2]
[356008594,1741793473388,-500.0,0.00023561,2]
[356008595,1741793473397,-500.0,0.00023561,2]
[356008596,1741793473407,-661.64,0.00023561,2]
[356008597,1741793473416,-328.19755978,0.00023561,2]
[356008598,1741793473426,-511.2848586,0.00023561,2]
[356008599,1741793473435,-500.0,0.00023561,2]
[356008600,1741793473445,-500.0,0.00023561,2]
[356008601,1741793473455,-500.0,0.00023561,2]
[356008602,1741793473464,-500.0,0.00023561,2]
[356008603,1741793473474,-500.0,0.00023561,2]
[356008604,1741793473483,-500.0,0.00023561,2]
[356008605,1741793473492,-609.8,0.00023561,2]
[356008606,1741793473505,-1131.2,0.00023561,2]
[356008607,1741793473515,-500.0,0.00023561,2]
[356008608,1741793473525,-500.0,0.00023561,2]
[356008609,1741793473534,-500.0,0.00023561,2]
[356008610,1741793473543,-826.09,0.00023561,2]
[356008611,1741793473552,-500.0,0.00023561,2]
[356008612,1741793473561,-500.0,0.00023561,2]
[356008613,1741793473571,-500.0,0.00023561,2]
[356008614,1741793473582,-500.0,0.00023561,2]
[356008615,1741793473592,-500.0,0.00023561,2]
[356008616,1741793473603,-500.0,0.00023561,2]
[356008617,1741793473613,-500.0,0.00023561,2]
[356008618,1741793473623,-500.0,0.00023561,2]
[356008619,1741793473634,-500.0,0.00023561,2]
[356008620,1741793473644,-1062.19,0.00023561,2]
[356008621,1741793473653,-500.0,0.00023561,2]
[356008622,1741793473662,-500.0,0.00023561,2]
[356008623,1741793473673,-500.0,0.00023561,2]
[356008624,1741793473683,-500.0,0.00023561,2]
[356008625,1741793473692,-500.0,0.00023561,2]
[356008626,1741793473702,-597.21,0.00023561,2]
[356008627,1741793473856,-874.59,0.00023561,2]
[356008628,1741793473866,-639.77,0.00023561,2]
[356008629,1741793473876,-605.08,0.00023561,5]
[356008630,1741793473886,-500.0,0.00023561,2]
[356008631,1741793473896,-500.0,0.00023561,2]
[356008632,1741793473906,-1294.83,0.00023561,2]
[356008633,1741793473916,-1330.17,0.00023561,2]
[356008634,1741793473926,-500.0,0.00023561,2]
[356008635,1741793473936,-500.0,0.00023561,2]
[356008636,1741793473945,-1279.74,0.00023561,2]
[356008637,1741793473955,-500.0,0.00023561,2]
[356008638,1741793473965,-500.0,0.00023561,2]
[356008639,1741793473974,-500.0,0.00023561,2]
[356008640,1741793473984,-1722.61,0.00023561,2]
[356008641,1741793473994,-500.0,0.00023561,2]
[356008642,1741793474007,-507.63,0.00023561,2]
[356008643,1741793474017,-527.04,0.00023561,2]
[356008644,1741793474027,-500.0,0.00023561,2]
[356008645,1741793474037,-506.99897535,0.00023561,2]
[356008646,1741793474047,-1063.33,0.00023561,2]
[356008647,1741793474056,-500.0,0.00023561,2]
[356008648,1741793474067,-500.0,0.00023561,2]
[356008649,1741793474076,-500.0,0.00023561,2]
[356008650,1741793474085,-698.39,0.00023561,2]